bitfinex/quotes_SOLUSD_20220113
["timestamp","ask_amount","ask_price","bid_price","bid_amount"]
[1642070361346,0.25,152.44,152.39,9.8416]
[1642070361548,39.76987563,152.45,152.39,9.8416]
[1642070362247,1.88109021,152.44,152.39,9.8416]
[1642070362646,0.25,152.44,152.39,9.8416]
[1642070363749,1.88109021,152.44,152.39,9.8416]
[1642070363947,2.13109021,152.44,152.39,9.8416]
[1642070364546,0.25,152.44,152.39,9.8416]
[1642070365047,29.92847563,152.45,152.39,9.8416]
[1642070365247,29.92847563,152.45,152.39,12.4656]
[1642070366449,29.92847563,152.45,152.39,9.8416]
[1642070369852,29.67847563,152.45,152.39,9.8416]
[1642070370252,29.67847563,152.45,152.39,15.8416]
[1642070370454,29.67847563,152.45,152.39,9.8416]
[1642070371354,32.55247563,152.45,152.38,36.4011]
[1642070371553,29.92847563,152.45,152.38,36.4011]
[1642070371854,2.624,152.44,152.38,36.4011]
[1642070372054,2.874,152.44,152.38,12.4662]
[1642070372252,1.5949558,152.43,152.38,2.624]
[1642070372452,27.84225114,152.42,152.38,2.624]
[1642070372655,25.21825114,152.42,152.38,2.624]
[1642070372856,25.46825114,152.42,152.38,2.624]
[1642070373751,25.46825114,152.42,152.38,9.8423]
[1642070377558,25.46825114,152.42,152.35,2.624]
[1642070377757,2.624,152.41,152.35,2.624]
[1642070377958,2.874,152.41,152.35,2.624]
[1642070379059,2.874,152.41,152.34,101.1706]
[1642070379260,9.8449,152.4,152.34,111.0151]
[1642070379460,29.28602628,152.39,152.34,111.0151]
[1642070379864,29.53602628,152.39,152.34,111.0151]
[1642070382864,1.5949558,152.36,152.34,111.0151]
[1642070383088,22.81182538,152.35,152.34,34.4483]
[1642070383288,22.81182538,152.35,152.34,9.8445]
[1642070383891,22.81182538,152.35,152.32,2.625]
[1642070384089,22.81182538,152.35,152.33,9.8454]
[1642070384891,22.81182538,152.35,152.32,2.625]
[1642070385092,23.06182538,152.35,152.32,2.625]
[1642070385290,25.68682538,152.35,152.31,23.6775]
[1642070385491,23.06182538,152.35,152.31,23.6775]
[1642070386090,23.06182538,152.35,152.31,33.5244]
[1642070386289,22.81182538,152.35,152.31,33.5244]
[1642070386492,22.81182538,152.35,152.32,2.625]
[1642070386890,23.06182538,152.35,152.33,6.06439993]
[1642070387292,23.06182538,152.35,152.33,9.8456]
[1642070388494,23.06182538,152.35,152.32,9.8461]
[1642070394803,22.81182538,152.35,152.32,9.8461]
[1642070396204,22.81182538,152.35,152.32,12.4711]
[1642070398906,22.81182538,152.35,152.33,6.06439993]
[1642070399205,22.81182538,152.35,152.33,15.90989993]
[1642070402409,22.81182538,152.35,152.33,9.8455]
[1642070405112,22.81182538,152.35,152.32,9.8461]
[1642070406312,22.81182538,152.35,152.32,10.1061]
[1642070407215,22.81182538,152.35,152.33,3.03219997]
[1642070407415,22.81182538,152.35,152.33,15.90939993]
[1642070410949,22.81182538,152.35,152.33,9.845]
[1642070412151,23.06182538,152.35,152.31,23.6775]
[1642070412352,25.68682538,152.35,152.31,23.6775]
[1642070412551,25.68682538,152.35,152.3,4.49123106]
[1642070413154,9.5,152.34,152.24,9.8507]
[1642070413358,2.626,152.33,152.29,1.87737724]
[1642070413555,2.876,152.33,152.29,1.87737724]
[1642070413754,43.0,152.32,152.29,7.724e-05]
[1642070414054,27.93033236,152.3,152.29,7.724e-05]
[1642070414254,37.78343236,152.3,152.29,7.724e-05]
[1642070414453,38.03343236,152.3,152.29,7.724e-05]
[1642070414654,38.03343236,152.3,152.25,3.76438205]
[1642070414955,38.03343236,152.3,152.2,102.9219]
[1642070416156,38.03343236,152.3,152.21,9.8528]
[1642070416356,38.03343236,152.3,152.21,12.4798]
[1642070418858,38.03343236,152.3,152.21,9.8528]
[1642070420563,38.03343236,152.3,152.22,23.7724]
[1642070421063,38.03343236,152.3,152.22,33.6246]
[1642070422562,38.03343236,152.3,152.22,9.8522]
[1642070422764,38.03343236,152.3,152.2,91.7771]
[1642070422964,1.5949558,152.24,152.2,91.7771]
[1642070423163,26.5937832,152.23,152.2,91.7771]
[1642070423363,26.5937832,152.23,152.21,6.06439993]
[1642070423564,9.5,152.36,152.23,65.88]
[1642070423766,2.627,152.35,152.25,9.8501]
[1642070423968,2.627,152.35,152.25,10.1001]
[1642070424165,15.86194252,152.38,152.25,75.9801]
[1642070424365,9.8495,152.35,152.26,101.5884]
[1642070424566,24.5693847,152.37,152.27,2.626]
[1642070424766,24.5693847,152.37,152.28,23.0566]
[1642070424966,24.5693847,152.37,152.29,2.625]
[1642070425371,24.5693847,152.37,152.29,2.875]
[1642070425768,24.8193847,152.37,152.29,12.7223]
[1642070426472,24.8193847,152.37,152.29,12.9823]
[1642070427469,24.8193847,152.37,152.29,18.9823]
[1642070427668,24.8193847,152.37,152.29,12.7223]
[1642070427870,24.8193847,152.37,152.29,12.4723]
[1642070428069,24.8193847,152.37,152.29,12.7223]
[1642070429269,34.6674847,152.37,152.29,12.7223]
[1642070429470,24.8193847,152.37,152.29,12.7223]
[1642070430772,27.4443847,152.37,152.29,12.7223]
[1642070430969,27.4443847,152.37,152.29,12.9823]
[1642070431574,24.8193847,152.37,152.29,12.9823]
[1642070432171,24.5693847,152.37,152.29,12.9823]
[1642070432674,0.57531482,152.31,152.29,12.7323]
[1642070432873,24.3340977,152.3,152.29,12.7323]
[1642070434078,24.3340977,152.3,152.29,12.9823]
[1642070434475,24.3340977,152.3,152.29,19.04669993]
[1642070436477,0.57531482,152.31,152.29,90.92669993]
[1642070437078,0.57531482,152.31,152.29,90.99669993]
[1642070437278,2.875,152.39,152.29,90.99669993]
[1642070437479,24.71840833,152.38,152.34,9.8439]
[1642070437880,24.96840833,152.38,152.34,9.8439]
[1642070439679,24.96840833,152.38,152.34,10.1039]
[1642070441384,24.71840833,152.38,152.34,10.1039]
[1642070441584,24.71840833,152.38,152.34,10.3539]
[1642070441990,2.625,152.39,152.36,39.0]
[1642070442188,2.625,152.47,152.37,18.52929993]
[1642070442590,2.625,152.47,152.37,25.03929993]
[1642070443121,24.71025333,152.46,152.38,65.88]
[1642070443324,24.71025333,152.46,152.42,9.8385]
[1642070445522,24.96025333,152.46,152.42,9.8385]
[1642070449628,24.96025333,152.46,152.42,15.8385]
[1642070450429,24.96025333,152.46,152.42,9.8385]
[1642070452038,24.96025333,152.46,152.41,9.8402]
[1642070459562,24.96025333,152.46,152.41,15.8402]
[1642070460259,24.96025333,152.46,152.41,9.8402]
[1642070461981,24.71025333,152.46,152.41,9.8402]
[1642070462781,24.71025333,152.46,152.42,2.624]
[1642070463081,24.71025333,152.46,152.44,9.8379]
[1642070463884,24.71025333,152.46,152.45,6.06439993]
[1642070464282,24.71025333,152.46,152.45,3.03219997]
[1642070464582,24.71025333,152.46,152.44,9.8379]
[1642070465688,24.71025333,152.46,152.44,12.87009996]
[1642070465889,24.71025333,152.46,152.45,3.03219997]
[1642070466490,24.71025333,152.46,152.45,21.30989997]
[1642070466690,2.624,152.49,152.45,21.30989997]
[1642070466890,2.623,152.52,152.45,23.93289997]
[1642070467090,2.623,152.52,152.45,27.30989997]
[1642070467297,6.35894252,152.53,152.45,27.30989997]
[1642070467691,25.75131744,152.52,152.45,27.30989997]
[1642070468092,26.00131744,152.52,152.45,27.30989997]
[1642070470795,26.00131744,152.52,152.45,21.30989997]
[1642070471596,26.00131744,152.52,152.48,9.8354]
[1642070476099,25.75131744,152.52,152.48,9.8354]
[1642070477400,26.00131744,152.52,152.48,9.8354]
[1642070483242,2.622,152.51,152.46,2.623]
[1642070483644,2.872,152.51,152.46,2.623]
[1642070484243,30.70701964,152.49,152.46,2.623]
[1642070485247,30.70701964,152.49,152.47,15.90089993]
[1642070491356,30.70701964,152.49,152.47,9.8365]
[1642070494060,30.70701964,152.49,152.46,9.837]
[1642070495960,30.70701964,152.49,152.47,6.06439993]
[1642070496160,30.70701964,152.49,152.47,15.90049993]
[1642070499698,30.70701964,152.49,152.47,12.86829997]
[1642070499895,30.70701964,152.49,152.47,9.8361]
[1642070500497,30.70701964,152.49,152.47,12.86829996]
[1642070501497,30.70701964,152.49,152.47,9.8361]
[1642070502499,30.70701964,152.49,152.48,3.03219996]
[1642070502697,30.70701964,152.49,152.46,12.4601]
[1642070502896,30.70701964,152.49,152.46,9.8371]
[1642070503097,30.70701964,152.49,152.45,2.623]
[1642070503301,30.95701964,152.49,152.43,35.5072]
[1642070503899,30.95701964,152.49,152.45,9.8376]
[1642070504499,30.95701964,152.49,152.43,26.0072]
[1642070504699,38.87001964,152.49,152.43,23.3842]
[1642070504901,48.70931964,152.49,152.43,33.2233]
[1642070505502,38.87001964,152.49,152.43,33.2233]
[1642070505698,30.70701964,152.49,152.43,33.4733]
[1642070506098,30.70701964,152.49,152.45,9.8373]
[1642070507501,30.95701964,152.49,152.45,9.8373]
[1642070513805,30.95701964,152.49,152.44,9.8382]
[1642070514008,30.95701964,152.49,152.43,32.0072]
[1642070514206,33.58001964,152.49,152.43,32.0072]
[1642070514405,30.95701964,152.49,152.43,32.0072]
[1642070514905,30.95701964,152.49,152.43,41.846]
[1642070515105,33.58001964,152.49,152.43,41.846]
[1642070515308,33.58001964,152.49,152.43,26.0072]
[1642070515506,30.95701964,152.49,152.43,2.623]
[1642070515806,2.623,152.48,152.43,2.623]
[1642070516012,2.873,152.48,152.43,2.623]
[1642070516306,12.7135,152.48,152.43,2.623]
[1642070517507,12.7135,152.48,152.41,12.4632]
[1642070518506,2.873,152.48,152.41,12.4632]
[1642070518908,2.873,152.48,152.41,35.7497]
[1642070519307,2.623,152.48,152.41,37.34190804]
[1642070519507,2.623,152.48,152.45,9.8361]
[1642070519708,2.623,152.48,152.46,2.623]
[1642070520009,2.623,152.48,152.43,59.5617]
[1642070520207,30.70701964,152.49,152.43,36.5347]
[1642070520409,30.70701964,152.49,152.43,36.7847]
[1642070520809,30.70701964,152.49,152.45,9.8365]
[1642070524712,30.70701964,152.49,152.44,9.8382]
[1642070524911,2.623,152.54,152.44,9.8382]
[1642070525114,3.73594252,152.55,152.45,23.89080804]
[1642070525115,6.35894252,152.55,152.45,23.89080804]
[1642070525313,3.73594252,152.55,152.46,75.38]
[1642070525514,3.73594252,152.54,152.46,81.63]
[1642070525813,3.73594252,152.54,152.47,1.08220804]
[1642070526012,26.55390653,152.53,152.48,75.38]
[1642070526413,26.55390653,152.53,152.48,81.89]
[1642070526815,26.55390653,152.53,152.49,2.622]
[1642070527013,26.55390653,152.53,152.5,9.5]
[1642070527214,26.55390653,152.53,152.51,8.68639993]
[1642070527612,26.55390653,152.53,152.51,8.94639993]
[1642070529215,26.55390653,152.53,152.52,9.8318]
[1642070533449,26.55390653,152.53,152.51,15.89819993]
[1642070534449,26.55390653,152.53,152.51,16.15819993]
[1642070536458,26.55390653,152.53,152.51,15.89819993]
[1642070538151,26.55390653,152.53,152.51,16.15819993]
[1642070539753,26.55390653,152.53,152.51,15.89819993]
[1642070549970,26.55390653,152.53,152.51,16.15819993]
[1642070550469,26.55390653,152.53,152.51,16.40819993]
[1642070551371,26.55390653,152.53,152.51,16.15819993]
[1642070553572,26.55390653,152.53,152.51,16.40819993]
[1642070553771,26.55390653,152.53,152.52,2.622]
[1642070553971,26.55390653,152.53,152.52,9.8322]
[1642070575029,1.87183989,152.56,152.52,9.8322]
[1642070575228,2.12183989,152.56,152.52,9.8322]
[1642070576031,25.11155463,152.56,152.52,9.8322]
[1642070576434,23.23971474,152.56,152.52,9.8322]
[1642070576631,25.86171474,152.56,152.52,9.8322]
[1642070578033,23.23971474,152.56,152.52,9.8322]
[1642070579733,24.86155463,152.56,152.52,9.8322]
[1642070580333,22.98971474,152.56,152.52,9.8322]
[1642070581036,1.87183989,152.57,152.52,11.42716706]
[1642070581234,1.87183989,152.57,152.52,17.42716706]
[1642070581637,1.87183989,152.57,152.53,9.5]
[1642070581833,1.87183989,152.57,152.55,9.8283]
[1642070582034,1.87183989,152.57,152.56,2.621]
[1642070582233,1.87183989,152.57,152.56,8.68539993]
[1642070582434,1.87183989,152.57,152.56,8.93539993]
[1642070582833,1.87183989,152.59,152.56,8.93539993]
[1642070583037,1.87183989,152.59,152.56,18.76369993]
[1642070583235,1.87183989,152.59,152.56,18.51369993]
[1642070583435,1.87183989,152.59,152.56,15.89269993]
[1642070584442,25.38093668,152.6,152.56,15.89269993]
[1642070585766,28.00193668,152.6,152.56,15.89269993]
[1642070586767,25.38093668,152.6,152.56,15.89269993]
[1642070589571,25.38093668,152.6,152.56,16.14269993]
[1642070589770,25.38093668,152.6,152.56,15.89269993]
[1642070596482,2.621,152.59,152.54,2.621]
[1642070596878,2.871,152.59,152.54,2.621]
[1642070597078,2.871,152.59,152.49,2.621]
[1642070597279,2.871,152.59,152.49,27.5054]
[1642070597280,25.6529,152.59,152.49,27.5054]
[1642070597781,25.6529,152.59,152.49,27.7554]
[1642070597979,25.6529,152.59,152.49,28.0154]
[1642070598179,35.4861,152.59,152.5,9.8338]
[1642070598479,35.4861,152.59,152.51,2.622]
[1642070600182,35.4861,152.59,152.51,12.4555]
[1642070601085,35.4861,152.59,152.51,12.7055]
[1642070601883,35.4861,152.59,152.51,12.4555]
[1642070603384,35.4861,152.59,152.51,9.8335]
[1642070607090,35.2361,152.59,152.51,9.8335]
[1642070607690,35.2361,152.59,152.5,12.4564]
[1642070608389,35.4861,152.59,152.5,12.4564]
[1642070610702,37.35793989,152.59,152.5,12.4564]
[1642070614125,37.10793989,152.59,152.5,12.4564]
[1642070614725,27.27473989,152.59,152.5,12.4564]
[1642070615527,27.52473989,152.59,152.5,12.4564]
[1642070616225,37.35793989,152.59,152.5,12.4564]
[1642070621034,37.35793989,152.59,152.51,24.7741]
[1642070624144,37.35793989,152.59,152.51,34.6079]
[1642070624543,14.32603989,152.59,152.51,34.6079]
[1642070624741,14.32603989,152.59,152.51,34.8579]
[1642070625643,12.4542,152.59,152.51,34.8579]
[1642070625843,9.8332,152.59,152.51,34.8579]
[1642070626046,10.0832,152.59,152.51,34.8579]
[1642070627047,12.7052,152.59,152.51,34.8579]
[1642070627848,2.872,152.59,152.51,34.8579]
[1642070628247,0.25,152.59,152.52,2.622]
[1642070628545,37.33537657,152.6,152.52,12.4548]
[1642070628745,2.621,152.59,152.52,12.4548]
[1642070628945,2.871,152.59,152.52,12.4548]
[1642070629349,12.7042,152.59,152.52,12.4548]
[1642070630248,12.7042,152.59,152.52,9.8328]
[1642070631452,12.7042,152.59,152.52,12.4548]
[1642070635052,2.871,152.59,152.52,12.4548]
[1642070635755,2.621,152.59,152.52,18.7048]
[1642070636357,2.621,152.59,152.52,12.7048]
[1642070636657,2.621,152.59,152.52,18.7048]
[1642070636857,27.25277657,152.6,152.52,18.7048]
[1642070637060,25.38093668,152.6,152.52,18.7048]
[1642070637861,25.38093668,152.6,152.53,23.1626]
[1642070638060,25.38093668,152.6,152.55,9.831]
[1642070639588,25.63093668,152.6,152.55,9.831]
[1642070640194,25.38093668,152.6,152.55,9.831]
[1642070651705,25.63093668,152.6,152.55,9.831]
[1642070655707,25.38093668,152.6,152.55,9.831]
[1642070672452,25.63093668,152.6,152.55,9.831]
[1642070672853,25.38093668,152.6,152.55,9.831]
[1642070678758,25.63093668,152.6,152.55,9.831]
[1642070679057,25.38093668,152.6,152.55,9.831]
[1642070679258,25.38093668,152.6,152.56,2.621]
[1642070679457,25.38093668,152.6,152.57,9.8301]
[1642070679657,25.38093668,152.6,152.58,6.06439993]
[1642070680761,25.38093668,152.6,152.58,15.89379993]
[1642070681462,25.38093668,152.6,152.58,6.06439993]
[1642070682260,25.63093668,152.6,152.58,6.06439993]
[1642070682963,25.38093668,152.6,152.58,6.06439993]
[1642070683566,25.63093668,152.6,152.58,6.06439993]
[1642070686063,25.38093668,152.6,152.58,15.89389993]
[1642070686266,25.38093668,152.6,152.59,2.621]
[1642070686465,4.49283989,152.62,152.59,2.621]
[1642070687168,4.49283989,152.62,152.59,18.4483]
[1642070687367,4.49283989,152.62,152.6,6.06439993]
[1642070687565,26.24631606,152.62,152.6,6.06439993]
[1642070689172,26.24631606,152.62,152.61,9.8266]
[1642070689767,26.24631606,152.62,152.6,6.06439993]
[1642070690268,23.62531606,152.62,152.6,6.06439993]
[1642070691168,40.621,152.61,152.55,2.621]
[1642070691370,40.621,152.61,152.54,26.201]
[1642070691570,40.871,152.61,152.54,26.201]
[1642070692170,50.7029,152.61,152.54,36.0329]
[1642070692570,50.7029,152.61,152.54,26.201]
[1642070693474,12.7029,152.61,152.54,26.201]
[1642070695174,12.7029,152.61,152.54,36.0327]
[1642070695777,9.8319,152.61,152.54,36.0327]
[1642070697076,10.0819,152.61,152.54,36.0327]
[1642070697678,0.25,152.61,152.54,36.0327]
[1642070697977,33.70661606,152.62,152.54,36.0327]
[1642070699005,23.87531606,152.62,152.54,36.0327]
[1642070699806,2.621,152.61,152.54,36.0327]
[1642070700007,2.871,152.61,152.54,36.0327]
[1642070701112,0.25,152.61,152.54,36.0327]
[1642070701609,26.49631606,152.62,152.54,36.0327]
[1642070701810,26.24631606,152.62,152.54,36.0327]
[1642070702010,26.24631606,152.62,152.54,36.2827]
[1642070702211,23.62531606,152.62,152.54,36.2827]
[1642070703616,23.62531606,152.62,152.54,36.5427]
[1642070704214,23.62531606,152.62,152.54,46.0427]
[1642070704614,23.62531606,152.62,152.54,45.7827]
[1642070705416,23.62531606,152.62,152.55,1.72787495]
[1642070705618,23.87531606,152.62,152.58,9.8289]
[1642070706625,23.87531606,152.62,152.57,9.8298]
[1642070709628,23.87531606,152.62,152.56,12.4514]
[1642070709924,2.621,152.61,152.54,27.92887495]
[1642070710124,2.621,152.61,152.54,25.30787495]
[1642070710328,2.871,152.61,152.54,25.30787495]
[1642070711132,2.871,152.61,152.54,23.58]
[1642070711330,0.25,152.61,152.55,2.621]
[1642070711533,26.49631606,152.62,152.55,2.621]
[1642070712331,26.49631606,152.62,152.55,12.4522]
[1642070713432,36.32771606,152.62,152.55,12.4522]
[1642070713833,36.32771606,152.62,152.55,2.621]
[1642070714135,33.70671606,152.62,152.55,2.621]
[1642070715539,2.621,152.61,152.54,23.58]
[1642070715938,2.871,152.61,152.54,23.58]
[1642070716136,12.703,152.61,152.53,4.34887495]
[1642070716335,35.7127,152.61,152.53,4.34887495]
[1642070716539,35.7127,152.61,152.53,12.4534]
[1642070720165,35.7127,152.61,152.53,2.621]
[1642070721167,35.7127,152.61,152.52,2.621]
[1642070722171,35.7127,152.61,152.53,9.8326]
[1642070723069,35.4627,152.61,152.53,9.8326]
[1642070723469,25.6307,152.61,152.53,9.8326]
[1642070724374,25.6307,152.61,152.54,2.621]
[1642070724571,35.7127,152.61,152.54,2.621]
[1642070725071,35.7127,152.61,152.52,12.4541]
[1642070726778,35.7127,152.61,152.52,2.621]
[1642070728080,35.7127,152.61,152.52,12.7042]
[1642070728680,35.7127,152.61,152.53,24.1827]
[1642070729083,25.8807,152.61,152.54,9.8319]
[1642070730983,25.8807,152.61,152.54,12.4529]
[1642070733286,35.7129,152.61,152.54,12.4529]
[1642070733586,35.7129,152.61,152.54,2.621]
[1642070734488,35.7129,152.61,152.53,34.0153]
[1642070736186,35.7129,152.61,152.53,29.0153]
[1642070739090,35.7129,152.61,152.53,19.1827]
[1642070739890,9.5,152.6,152.53,19.1827]
[1642070740089,9.8334,152.59,152.52,9.8331]
[1642070740293,9.8334,152.59,152.52,7.8331]
[1642070740495,10.0834,152.59,152.52,7.8331]
[1642070741793,0.25,152.59,152.52,7.8331]
[1642070741995,19.5828,152.6,152.52,7.8331]
[1642070746321,9.75,152.6,152.52,7.8331]
[1642070746522,9.75,152.6,152.52,8.0831]
[1642070746822,0.25,152.6,152.52,8.0831]
[1642070747025,27.75253989,152.61,152.52,8.0831]
[1642070747223,27.50253989,152.61,152.54,9.8314]
[1642070747522,25.6307,152.61,152.54,9.8314]
[1642070748523,0.25,152.61,152.54,9.8314]
[1642070748926,28.36815595,152.62,152.54,9.8314]
[1642070749125,25.74715595,152.62,152.55,2.621]
[1642070749326,25.74715595,152.62,152.56,9.8307]
[1642070749724,23.87531606,152.62,152.56,9.8307]
[1642070751038,26.49631606,152.62,152.56,9.8307]
[1642070751441,26.49631606,152.62,152.55,9.8313]
[1642070752241,36.32801606,152.62,152.55,9.8313]
[1642070752441,36.32801606,152.62,152.54,9.8319]
[1642070753246,102.20801606,152.62,152.54,9.8319]
[1642070753447,104.07985595,152.62,152.54,9.8319]
[1642070754974,104.07985595,152.62,152.53,9.8325]
[1642070755777,1.87183989,152.61,152.53,9.8325]
[1642070755978,12.4541,152.6,152.53,9.8325]
[1642070756377,12.7041,152.6,152.53,9.8325]
[1642070759981,12.7041,152.6,152.52,80.2183]
[1642070759982,78.5841,152.6,152.52,80.2183]
[1642070760384,88.0841,152.6,152.52,80.2183]
[1642070760783,88.0841,152.6,152.52,77.5973]
[1642070762586,89.95593989,152.6,152.52,77.5973]
[1642070764188,88.0841,152.6,152.52,77.5973]
[1642070765192,89.95593989,152.6,152.52,77.5973]
[1642070768794,89.95593989,152.6,152.51,2.621]
[1642070769391,89.95593989,152.6,152.51,27.5966]
[1642070770291,89.95593989,152.6,152.51,37.4306]
[1642070771194,89.95593989,152.6,152.51,27.5966]
[1642070781027,91.60506171,152.6,152.51,27.5966]
[1642070788038,1.87183989,152.59,152.51,27.5966]
[1642070788236,21.20573989,152.59,152.51,37.4305]
[1642070788437,21.45573989,152.59,152.51,37.4305]
[1642070789338,44.77133989,152.59,152.51,37.4305]
[1642070790440,44.77133989,152.59,152.51,27.5966]
[1642070791140,65.88,152.58,152.51,27.5966]
[1642070791339,75.38,152.58,152.51,27.5966]
[1642070791540,9.836,152.56,152.51,24.9756]
[1642070791746,28.07674883,152.55,152.51,24.9756]
[1642070792146,28.32674883,152.55,152.51,24.9756]
[1642070792642,28.32674883,152.55,152.49,73.5101]
[1642070793143,38.16314883,152.55,152.49,73.5101]
[1642070795546,104.04314883,152.55,152.49,73.5101]
[1642070795742,94.20674883,152.55,152.49,73.5101]
[1642070795943,28.32674883,152.55,152.49,73.5101]
[1642070797146,38.16304883,152.55,152.49,73.5101]
[1642070800052,28.32674883,152.55,152.49,73.5101]
[1642070801553,38.16304883,152.55,152.49,73.5101]
[1642070802757,28.07674883,152.55,152.49,73.5101]
[1642070803354,28.07674883,152.55,152.5,2.622]
[1642070805356,28.32674883,152.55,152.5,2.622]
[1642070813459,28.07674883,152.55,152.5,2.622]
[1642070815491,28.32674883,152.55,152.5,2.622]
[1642070816692,28.32674883,152.55,152.49,85.9673]
[1642070824805,28.07674883,152.55,152.49,85.9673]
[1642070826414,28.32674883,152.55,152.49,85.9673]
[1642070829213,28.32674883,152.55,152.49,85.4673]
[1642070830213,28.32674883,152.55,152.49,84.4673]
[1642070836951,28.07674883,152.55,152.49,84.7173]
[1642070838453,28.07674883,152.55,152.49,86.44517495]
[1642070840853,28.07674883,152.55,152.5,1.72787495]
[1642070841052,28.07674883,152.55,152.51,2.622]
[1642070841254,28.07674883,152.55,152.52,9.8331]
[1642070841453,28.07674883,152.55,152.53,6.06439993]
[1642070844359,2.622,152.6,152.53,6.06439993]
[1642070844559,12.372,152.6,152.53,28.72759993]
[1642070845160,12.372,152.6,152.53,38.56019993]
[1642070845362,37.30454272,152.6,152.53,38.56019993]
[1642070845561,37.30454272,152.6,152.53,38.81019993]
[1642070846362,34.68254272,152.6,152.53,38.81019993]
[1642070847365,34.68254272,152.6,152.54,2.621]
[1642070847565,34.93254272,152.6,152.54,12.4527]
[1642070849669,34.93254272,152.6,152.54,9.8317]
[1642070853473,37.55354272,152.6,152.54,9.8317]
[1642070853673,37.55354272,152.6,152.53,32.4957]
[1642070855677,37.30354272,152.6,152.53,32.4957]
[1642070855877,37.30354272,152.6,152.53,32.7457]
[1642070856277,1.87183989,152.62,152.56,9.8306]
[1642070857286,1.87183989,152.63,152.56,9.8306]
[1642070857681,1.87183989,152.63,152.57,34.2774]
[1642070858082,0.25,152.63,152.57,34.2774]
[1642070858301,55.60830824,152.64,152.57,34.2774]
[1642070858483,28.69160824,152.64,152.58,2.621]
[1642070859286,26.81976835,152.64,152.58,2.621]
[1642070860213,26.81976835,152.64,152.59,9.8284]
[1642070860508,26.81976835,152.64,152.59,9.7284]
[1642070861010,27.06976835,152.64,152.59,9.7284]
[1642070864915,26.81976835,152.64,152.59,9.7284]
[1642070866313,27.06976835,152.64,152.59,9.7284]
[1642070870717,26.81976835,152.64,152.59,9.7284]
[1642070870918,26.81976835,152.64,152.59,9.9784]
[1642070871715,26.81976835,152.64,152.6,2.62]
[1642070871916,26.81976835,152.64,152.62,9.8264]
[1642070872918,26.81976835,152.64,152.63,6.06439993]
[1642070873518,26.81976835,152.64,152.62,9.8264]
[1642070874218,26.81976835,152.64,152.63,6.06439993]
[1642070877522,26.81976835,152.64,152.61,9.8274]
[1642070877724,26.81976835,152.64,152.6,9.8281]
[1642070879428,27.06976835,152.64,152.6,9.8281]
[1642070880026,27.06976835,152.64,152.59,32.7369]
[1642070880430,27.06976835,152.64,152.57,2.62]
[1642070880628,27.06976835,152.64,152.55,25.5809]
[1642070881027,27.06976835,152.64,152.57,9.83]
[1642070881229,29.69076835,152.64,152.57,9.83]
[1642070881427,29.69076835,152.64,152.55,25.5809]
[1642070881627,52.36616835,152.64,152.55,25.5809]
[1642070881929,62.19706835,152.64,152.55,25.5809]
[1642070882627,62.19706835,152.64,152.55,25.8309]
[1642070882931,62.19706835,152.64,152.55,25.5809]
[1642070883227,62.19706835,152.64,152.55,35.4122]
[1642070883828,129.94890824,152.64,152.55,32.7912]
[1642070884029,129.94890824,152.64,152.55,22.9599]
[1642070886529,1.87183989,152.63,152.55,22.9599]
[1642070886729,11.70343989,152.63,152.55,22.9599]
[1642070886931,11.70343989,152.63,152.55,32.7913]
[1642070887830,1.87183989,152.63,152.55,32.7913]
[1642070888033,2.12183989,152.63,152.55,32.7913]
[1642070888834,0.25,152.63,152.55,32.7913]
[1642070889033,51.61700824,152.64,152.56,2.621]
[1642070889333,51.61700824,152.64,152.57,9.83]
[1642070889533,2.621,152.63,152.57,9.83]
[1642070889931,2.871,152.63,152.57,9.83]
[1642070890331,2.621,152.63,152.57,9.83]
[1642070891034,51.36700824,152.64,152.57,9.83]
[1642070891434,49.49516835,152.64,152.57,9.83]
[1642070891634,49.74516835,152.64,152.57,9.83]
[1642070896072,49.24516835,152.64,152.57,9.83]
[1642070897971,26.56976835,152.64,152.57,9.83]